{"text_format":"1","workbook":"xlsx","n_sheets":3,"sheets":["Feuil1","Feuil2","Feuil3"],"not_rendered":{"charts":0,"images":0,"macros":1,"external_links":0,"defined_names":36,"comments":0,"pivot_tables":0},"unopened":[],"bounds":{"document_bytes":16777216,"sheet_cells":100000,"rows_first":2000,"rows_last":500,"rows_between":2000,"halvings":0,"cell_chars":16384,"cell_head_chars":4096},"cells_cut":0,"cells_raw":0,"read":"whole","date_system":"1900"}

{"sheet":"Feuil1","index":0,"n_rows":53,"n_cols":15,"rows_kept":53,"cut":false,"hidden":false,"merged":[[1,3,1,7],[42,1,42,4],[42,6,42,9],[42,11,42,14],[3,11,3,12],[18,1,18,4],[18,6,18,9],[18,11,18,14],[30,1,30,4],[30,6,30,9],[30,11,30,14]]}
[]
[null,null,null,"CLASSEMENT CHAMPIONNAT"]
[]
[null,null,"MJ","V","N","D","Pts","BM","BE","Diff",null,"Participants",null,"Info"]
[null,"Marc",{"$f":"SUM(D5:F5)","v":12},{"$f":"SUMPRODUCT((team11=$B5)*(score11>score12))+SUMPRODUCT((team12=$B5)*(score12>score11))+SUMPRODUCT((team21=$B5)*(score21>score22))+SUMPRODUCT((team22=$B5)*(score22>score21))+SUMPRODUCT((team31=$B5)*(score31>score32))+SUMPRODUCT((team32=$B5)*(score32>score31))+SUMPRODUCT((team41=$B5)*(score41>score42))+SUMPRODUCT((team42=$B5)*(score42>score41))+SUMPRODUCT((team51=$B5)*(score51>score52))+SUMPRODUCT((team52=$B5)*(score52>score51))+SUMPRODUCT((team61=$B5)*(score61>score62))+SUMPRODUCT((team62=$B5)*(score62>score61))+SUMPRODUCT((team71=$B5)*(score71>score72))+SUMPRODUCT((team72=$B5)*(score72>score71))+SUMPRODUCT((team81=$B5)*(score81>score82))+SUMPRODUCT((team82=$B5)*(score82>score81))+SUMPRODUCT((team91=$B5)*(score91>score92))+SUMPRODUCT((team92=$B5)*(score92>score91))","v":8},{"$f":"SUMPRODUCT((team11=$B5)*(score11=score12)*(score11<>\"\"))+SUMPRODUCT((team12=$B5)*(score12=score11)*(score12<>\"\"))+SUMPRODUCT((team21=$B5)*(score21=score22)*(score21<>\"\"))+SUMPRODUCT((team22=$B5)*(score22=score21)*(score22<>\"\"))+SUMPRODUCT((team31=$B5)*(score31=score32)*(score31<>\"\"))+SUMPRODUCT((team32=$B5)*(score32=score31)*(score32<>\"\"))+SUMPRODUCT((team41=$B5)*(score41=score42)*(score41<>\"\"))+SUMPRODUCT((team42=$B5)*(score42=score41)*(score42<>\"\"))+SUMPRODUCT((team51=$B5)*(score51=score52)*(score51<>\"\"))+SUMPRODUCT((team52=$B5)*(score52=score51)*(score52<>\"\"))+SUMPRODUCT((team61=$B5)*(score61=score62)*(score61<>\"\"))+SUMPRODUCT((team62=$B5)*(score62=score61)*(score62<>\"\"))+SUMPRODUCT((team71=$B5)*(score71=score72)*(score71<>\"\"))+SUMPRODUCT((team72=$B5)*(score72=score71)*(score72<>\"\"))+SUMPRODUCT((team81=$B5)*(score81=score82)*(score81<>\"\"))+SUMPRODUCT((team82=$B5)*(score82=score81)*(score82<>\"\"))+SUMPRODUCT((team91=$B5)*(score91=score92)*(score91<>\"\"))+SUMPRODUCT((team92=$B5)*(score92=score91)*(score92<>\"\"))","v":2},{"$f":"SUMPRODUCT((team11=$B5)*(score11<score12))+SUMPRODUCT((team12=$B5)*(score12<score11))+SUMPRODUCT((team21=$B5)*(score21<score22))+SUMPRODUCT((team22=$B5)*(score22<score21))+SUMPRODUCT((team31=$B5)*(score31<score32))+SUMPRODUCT((team32=$B5)*(score32<score31))+SUMPRODUCT((team41=$B5)*(score41<score42))+SUMPRODUCT((team42=$B5)*(score42<score41))+SUMPRODUCT((team51=$B5)*(score51<score52))+SUMPRODUCT((team52=$B5)*(score52<score51))+SUMPRODUCT((team61=$B5)*(score61<score62))+SUMPRODUCT((team62=$B5)*(score62<score61))+SUMPRODUCT((team71=$B5)*(score71<score72))+SUMPRODUCT((team72=$B5)*(score72<score71))+SUMPRODUCT((team81=$B5)*(score81<score82))+SUMPRODUCT((team82=$B5)*(score82<score81))+SUMPRODUCT((team91=$B5)*(score91<score92))+SUMPRODUCT((team92=$B5)*(score92<score91))","v":2},{"$f":"D5*3+E5","v":26},{"$f":"SUMPRODUCT((team11=$B5)*(score11))+SUMPRODUCT((team12=$B5)*(score12))+SUMPRODUCT((team21=$B5)*(score21))+SUMPRODUCT((team22=$B5)*(score22))+SUMPRODUCT((team31=$B5)*(score31))+SUMPRODUCT((team32=$B5)*(score32))+SUMPRODUCT((team41=$B5)*(score41))+SUMPRODUCT((team42=$B5)*(score42))+SUMPRODUCT((team51=$B5)*(score51))+SUMPRODUCT((team52=$B5)*(score52))+SUMPRODUCT((team61=$B5)*(score61))+SUMPRODUCT((team62=$B5)*(score62))+SUMPRODUCT((team71=$B5)*(score71))+SUMPRODUCT((team72=$B5)*(score72))+SUMPRODUCT((team81=$B5)*(score81))+SUMPRODUCT((team82=$B5)*(score82))+SUMPRODUCT((team91=$B5)*(score91))+SUMPRODUCT((team92=$B5)*(score92))","v":40},{"$f":"SUMPRODUCT((team11=$B5)*(team12<>$B5)*(score12))+SUMPRODUCT((team12=$B5)*(team11<>$B5)*(score11))+SUMPRODUCT((team21=$B5)*(team22<>$B5)*(score22))+SUMPRODUCT((team22=$B5)*(team21<>$B5)*(score21))+SUMPRODUCT((team31=$B5)*(team32<>$B5)*(score32))+SUMPRODUCT((team32=$B5)*(team31<>$B5)*(score31))+SUMPRODUCT((team41=$B5)*(team42<>$B5)*(score42))+SUMPRODUCT((team42=$B5)*(team41<>$B5)*(score41))+SUMPRODUCT((team51=$B5)*(team52<>$B5)*(score52))+SUMPRODUCT((team52=$B5)*(team51<>$B5)*(score51))+SUMPRODUCT((team61=$B5)*(team62<>$B5)*(score62))+SUMPRODUCT((team62=$B5)*(team61<>$B5)*(score61))+SUMPRODUCT((team71=$B5)*(team72<>$B5)*(score72))+SUMPRODUCT((team72=$B5)*(team71<>$B5)*(score71))+SUMPRODUCT((team81=$B5)*(team82<>$B5)*(score82))+SUMPRODUCT((team82=$B5)*(team81<>$B5)*(score81))+SUMPRODUCT((team91=$B5)*(team92<>$B5)*(score92))+SUMPRODUCT((team92=$B5)*(team91<>$B5)*(score91))","v":17},{"$f":"H5-I5","v":23},null,"Loulou","X","Brésil"]
[null,"Fabe",6,5,1,0,16,13,4,9,null,"Marc","X","Belgique"]
[null,"Ted",6,5,0,1,15,14,9,5,null,"Steph","X","Espagne"]
[null,"Loulou",10,4,1,5,13,24,21,3,null,"Tonio","X","France"]
[null,"Tonio",6,3,1,2,10,12,11,1,null,"Fabe","X","Italie"]
[null,"Steph",6,2,1,3,7,9,12,-3,null,"Adrien"]
[null,"Thom",4,2,0,2,6,6,2,4,null,"Nico"]
[null,"Adrien",0,0,0,0,0,0,0,0,null,"Alex","forfait","Argentine"]
[null,"Nico",0,0,0,0,0,0,0,0,null,"Ted","X","Portugal"]
[null,"Alex",14,0,0,14,0,0,42,-42,null,"Thom","X","Allemagne"]
[]
[]
[]
[]
[null,"Matchs n°1",null,null,null,null,"Matchs n°2",null,null,null,null,"Matchs n°3"]
[null,"Loulou",3,"Marc",5,null,"Loulou",1,"Ted",2,null,"Loulou",null,"Thom"]
[null,"Marc",5,"Loulou",3,null,"Ted",3,"Loulou",2,null,"Thom",null,"Loulou"]
[null,"Fabe",null,"Ted",null,null,"Fabe",1,"Thom",0,null,"Fabe",null,"Adrien"]
[null,"Ted",null,"Fabe",null,null,"Thom",0,"Fabe",1,null,"Adrien",null,"Fabe"]
[null,"Alex",0,"Thom",3,null,"Alex",null,"Adrien",null,null,"Alex",null,"Nico"]
[null,"Thom",3,"Alex",0,null,"Adrien",null,"Alex",null,null,"Nico",null,"Alex"]
[null,"Steph",null,"Adrien",null,null,"Steph",null,"Nico",null,null,"Steph",null,"Tonio"]
[null,"Adrien",null,"Steph",null,null,"Nico",null,"Steph",null,null,"Tonio",null,"Steph"]
[null,"Tonio",null,"Nico",null,null,"Tonio",0,"Marc",3,null,"Marc",1,"Ted",3]
[null,"Nico",null,"Tonio",null,null,"Marc",2,"Tonio",2,null,"Ted",0,"Marc",5]
[]
[null,"Matchs n°4",null,null,null,null,"Matchs n°5",null,null,null,null,"Matchs n°6"]
[null,"Loulou",null,"Adrien",null,null,"Loulou",null,"Nico",null,null,"Loulou",5,"Tonio",1]
[null,"Adrien",null,"Loulou",null,null,"Nico",null,"Loulou",null,null,"Tonio",3,"Loulou",1]
[null,"Fabe",null,"Nico",null,null,"Fabe",null,"Tonio",null,null,"Fabe",null,"Steph"]
[null,"Nico",null,"Fabe",null,null,"Tonio",null,"Fabe",null,null,"Steph",null,"Fabe"]
[null,"Alex",0,"Tonio",3,null,"Alex",0,"Steph",3,null,"Alex",0,"Marc",3]
[null,"Tonio",3,"Alex",0,null,"Steph",3,"Alex",0,null,"Marc",3,"Alex",0]
[null,"Marc",null,"Thom",null,null,"Adrien",null,"Marc",null,null,"Ted",null,"Adrien"]
[null,"Thom",null,"Marc",null,null,"Marc",null,"Adrien",null,null,"Adrien",null,"Ted"]
[null,"Steph",null,"Ted",null,null,"Thom",null,"Ted",null,null,"Nico",null,"Thom"]
[null,"Ted",null,"Steph",null,null,"Ted",null,"Thom",null,null,"Thom",null,"Nico"]
[]
[null,"Matchs n°7",null,null,null,null,"Matchs n°8",null,null,null,null,"Matchs n°9"]
[null,"Loulou",2,"Steph",1,null,"Loulou",3,"Alex",0,null,"Loulou",null,"Fabe"]
[null,"Steph",1,"Loulou",1,null,"Alex",0,"Loulou",3,null,"Fabe",null,"Loulou"]
[null,"Fabe",3,"Alex",0,null,"Fabe",2,"Marc",2,null,"Ted",3,"Alex",0]
[null,"Alex",0,"Fabe",3,null,"Marc",2,"Fabe",3,null,"Alex",0,"Ted",3]
[null,"Marc",null,"Nico",null,null,"Nico",null,"Ted",null,null,"Steph",1,"Marc",6]
[null,"Nico",null,"Marc",null,null,"Ted",null,"Nico",null,null,"Marc",3,"Steph",0]
[null,"Tonio",null,"Ted",null,null,"Thom",null,"Steph",null,null,"Thom",null,"Tonio"]
[null,"Ted",null,"Tonio",null,null,"Steph",null,"Thom",null,null,"Tonio",null,"Thom"]
[null,"Adrien",null,"Thom",null,null,"Adrien",null,"Tonio",null,null,"Adrien",null,"Nico"]
[null,"Thom",null,"Adrien",null,null,"Tonio",null,"Adrien",null,null,"Nico",null,"Adrien"]

{"sheet":"Feuil2","index":1,"n_rows":0,"n_cols":0,"rows_kept":0,"cut":false,"hidden":false,"merged":[]}

{"sheet":"Feuil3","index":2,"n_rows":0,"n_cols":0,"rows_kept":0,"cut":false,"hidden":false,"merged":[]}